[Event "Titled Tuesday Blitz February 14 Late 2023"]
[White "Fajdetic, Hrvoje"]
[Black "Brilej, Jaka"]
[WhiteFideId "14501945"]
[BlackFideId "14618818"]
[WhiteElo "2151"]
[BlackElo "2321"]
[Result "0-1"]
[Round "07"]
[TimeControl "180+2"]
[Date "2023.02.14"]
[WhiteClock "0:00:05"]
[BlackClock "0:00:13"]

1. d4 {[%clk 0:02:57]}  d5 {[%clk 0:02:59]} 2. Bf4 {[%clk 0:02:57]}  c5 {[%clk 0:02:56]} 3. e3 {[%clk 0:02:57]}  Nc6 {[%clk 0:02:54]} 4. Nc3 {[%clk 0:02:57]}  a6 {[%clk 0:02:17]} 5. Nf3 {[%clk 0:02:55]}  Bg4 {[%clk 0:02:08]} 6. Be2 {[%clk 0:02:55]}  e6 {[%clk 0:02:08]} 7. a3 {[%clk 0:02:49]}  Nf6 {[%clk 0:02:06]} 8. O-O {[%clk 0:02:47]}  Be7 {[%clk 0:01:57]} 9. Ne5 {[%clk 0:02:45]}  Bxe2 {[%clk 0:01:55]} 10. Nxe2 {[%clk 0:02:46]}  O-O {[%clk 0:01:56]} 11. Rc1 {[%clk 0:02:16]}  c4 {[%clk 0:01:47]} 12. Nxc6 {[%clk 0:02:00]}  bxc6 {[%clk 0:01:45]} 13. c3 {[%clk 0:01:50]}  Bd6 {[%clk 0:01:43]} 14. Ng3 {[%clk 0:01:37]}  Bxf4 {[%clk 0:01:39]} 15. exf4 {[%clk 0:01:38]}  Rb8 {[%clk 0:01:39]} 16. Rc2 {[%clk 0:01:37]}  g6 {[%clk 0:01:39]} 17. Re1 {[%clk 0:01:29]}  Qc7 {[%clk 0:01:28]} 18. Re5 {[%clk 0:01:23]}  Nd7 {[%clk 0:01:26]} 19. Qg4 {[%clk 0:01:18]}  Nxe5 {[%clk 0:01:23]} 20. fxe5 {[%clk 0:01:19]}  Kh8 {[%clk 0:01:11]} 21. Qh4 {[%clk 0:00:24]}  Qd8 {[%clk 0:01:07]} 22. Qh6 {[%clk 0:00:24]}  f5 {[%clk 0:00:58]} 23. f4 {[%clk 0:00:22]}  Qe7 {[%clk 0:00:57]} 24. Nf1 {[%clk 0:00:20]}  Qg7 {[%clk 0:00:56]} 25. Qh4 {[%clk 0:00:20]}  Rg8 {[%clk 0:00:55]} 26. Ne3 {[%clk 0:00:18]}  g5 {[%clk 0:00:54]} 27. fxg5 {[%clk 0:00:18]}  Qxg5 {[%clk 0:00:54]} 28. Qf2 {[%clk 0:00:18]}  Rb7 {[%clk 0:00:53]} 29. g3 {[%clk 0:00:18]}  Rf7 {[%clk 0:00:51]} 30. Ng2 {[%clk 0:00:18]}  f4 {[%clk 0:00:34]} 31. gxf4 {[%clk 0:00:09]}  Rxf4 {[%clk 0:00:31]} 32. Qd2 {[%clk 0:00:07]}  Rg4 {[%clk 0:00:28]} 33. Qxg5 {[%clk 0:00:06]}  R8xg5 {[%clk 0:00:29]} 34. h3 {[%clk 0:00:06]}  Rg3 {[%clk 0:00:27]} 35. Kh2 {[%clk 0:00:06]}  Rf3 {[%clk 0:00:19]} 36. Nh4 {[%clk 0:00:06]}  Rf7 {[%clk 0:00:17]} 37. Rg2 {[%clk 0:00:04]}  Rxg2+ {[%clk 0:00:17]} 38. Kxg2 {[%clk 0:00:05]}  Kg7 {[%clk 0:00:18]} 39. Kg3 {[%clk 0:00:05]}  Rb7 {[%clk 0:00:18]} 40. Nf3 {[%clk 0:00:04]}  Rxb2 {[%clk 0:00:18]} 41. Ng5 {[%clk 0:00:05]}  Rb3 {[%clk 0:00:15]} 42. Nxe6+ {[%clk 0:00:05]}  Kg6 {[%clk 0:00:15]} 43. Nf4+ {[%clk 0:00:05]}  Kf7 {[%clk 0:00:14]} 44. Ne2 {[%clk 0:00:05]}  Rxa3 {[%clk 0:00:15]} 45. Kf4 {[%clk 0:00:05]}  Ra2 {[%clk 0:00:13]} 46. Ng3 {[%clk 0:00:05]}  Rf2+ {[%clk 0:00:13]} 47. Kg5 {[%clk 0:00:06]}  a5 {[%clk 0:00:13]} 48. Nf5 {[%clk 0:00:02]}  Rxf5+ {[%clk 0:00:12]} 49. Kxf5 {[%clk 0:00:03]}  a4 {[%clk 0:00:12]} 50. e6+ {[%clk 0:00:04]}  Ke7 {[%clk 0:00:13]} 51. Ke5 {[%clk 0:00:05]}  a3 {[%clk 0:00:13]} 0-1


[Site "https://www.chess.com"]

[Event "Titled Tuesday Blitz February 14 Late 2023"]
[White "Gonzalez, Francisco Silva"]
[Black "Prem, Pranav"]
[WhiteFideId "1512285"]
[BlackFideId "30901057"]
[WhiteElo "2021"]
[BlackElo "2061"]
[Result "0-1"]
[Round "07"]
[TimeControl "180+2"]
[Date "2023.02.14"]
[WhiteClock "0:00:42"]
[BlackClock "0:00:35"]

1. d4 {[%clk 0:03:00]}  d5 {[%clk 0:02:55]} 2. c4 {[%clk 0:03:00]}  e6 {[%clk 0:02:54]} 3. Nc3 {[%clk 0:03:01]}  Nf6 {[%clk 0:02:53]} 4. Bg5 {[%clk 0:03:01]}  Be7 {[%clk 0:02:51]} 5. e3 {[%clk 0:03:01]}  Nbd7 {[%clk 0:02:49]} 6. Qc2 {[%clk 0:03:00]}  O-O {[%clk 0:02:47]} 7. Nf3 {[%clk 0:03:00]}  h6 {[%clk 0:02:45]} 8. cxd5 {[%clk 0:02:59]}  hxg5 {[%clk 0:02:33]} 9. dxe6 {[%clk 0:02:58]}  fxe6 {[%clk 0:02:32]} 10. Nxg5 {[%clk 0:02:58]}  Nb6 {[%clk 0:02:27]} 11. h4 {[%clk 0:02:58]}  c5 {[%clk 0:02:18]} 12. dxc5 {[%clk 0:02:56]}  Bxc5 {[%clk 0:02:14]} 13. a3 {[%clk 0:02:56]}  Qe7 {[%clk 0:02:08]} 14. b4 {[%clk 0:02:55]}  Bd6 {[%clk 0:02:05]} 15. Rd1 {[%clk 0:02:54]}  Bd7 {[%clk 0:01:57]} 16. Nce4 {[%clk 0:02:14]}  Rac8 {[%clk 0:01:33]} 17. Nxf6+ {[%clk 0:02:12]}  gxf6 {[%clk 0:01:32]} 18. Qg6+ {[%clk 0:02:12]}  Qg7 {[%clk 0:01:26]} 19. Qxg7+ {[%clk 0:02:11]}  Kxg7 {[%clk 0:01:27]} 20. Rxd6 {[%clk 0:01:52]}  fxg5 {[%clk 0:01:26]} 21. hxg5 {[%clk 0:01:48]}  Rc1+ {[%clk 0:01:23]} 22. Kd2 {[%clk 0:01:48]}  Ra1 {[%clk 0:01:15]} 23. f4 {[%clk 0:01:47]}  Bb5 {[%clk 0:01:07]} 24. Bxb5 {[%clk 0:01:38]}  Rxh1 {[%clk 0:01:06]} 25. Rxe6 {[%clk 0:01:38]}  Ra1 {[%clk 0:01:02]} 26. g4 {[%clk 0:01:29]}  Ra2+ {[%clk 0:00:50]} 27. Ke1 {[%clk 0:01:28]}  Rc8 {[%clk 0:00:46]} 28. Be2 {[%clk 0:01:05]}  Rcc2 {[%clk 0:00:42]} 29. Bd1 {[%clk 0:00:59]}  Rg2 {[%clk 0:00:41]} 30. Kf1 {[%clk 0:00:56]}  Rh2 {[%clk 0:00:36]} 31. Kg1 {[%clk 0:00:56]}  Rhd2 {[%clk 0:00:36]} 32. Be2 {[%clk 0:00:46]}  Rxe2 {[%clk 0:00:36]} 33. Kf1 {[%clk 0:00:42]}  Rec2 {[%clk 0:00:35]} 0-1


[Site "https://www.chess.com"]

[Event "Titled Tuesday Blitz February 14 Late 2023"]
[White "Reprintsev, Alexander"]
[Black "Hartikainen, Jarmo"]
[WhiteFideId "14100541"]
[BlackFideId "503134"]
[WhiteElo "2253"]
[BlackElo "2108"]
[Result "1-0"]
[Round "07"]
[TimeControl "180+2"]
[Date "2023.02.14"]
[WhiteClock "0:01:14"]
[BlackClock "0:00:07"]

1. e4 {[%clk 0:02:58]}  c5 {[%clk 0:02:59]} 2. b3 {[%clk 0:02:58]}  Nc6 {[%clk 0:02:56]} 3. Bb2 {[%clk 0:02:58]}  e5 {[%clk 0:02:55]} 4. f4 {[%clk 0:02:57]}  d6 {[%clk 0:02:55]} 5. Qf3 {[%clk 0:02:57]}  Nf6 {[%clk 0:02:51]} 6. Bb5 {[%clk 0:02:56]}  Bd7 {[%clk 0:02:37]} 7. Ne2 {[%clk 0:02:55]}  Nd4 {[%clk 0:02:33]} 8. Nxd4 {[%clk 0:02:55]}  cxd4 {[%clk 0:02:28]} 9. Bxd7+ {[%clk 0:02:56]}  Qxd7 {[%clk 0:02:27]} 10. c3 {[%clk 0:02:57]}  Qc6 {[%clk 0:02:11]} 11. fxe5 {[%clk 0:02:48]}  dxe5 {[%clk 0:02:01]} 12. d3 {[%clk 0:02:41]}  Bc5 {[%clk 0:01:35]} 13. cxd4 {[%clk 0:02:37]}  Bxd4 {[%clk 0:01:34]} 14. Bxd4 {[%clk 0:02:37]}  exd4 {[%clk 0:01:34]} 15. O-O {[%clk 0:02:33]}  O-O {[%clk 0:01:33]} 16. Nd2 {[%clk 0:02:32]}  b5 {[%clk 0:01:31]} 17. e5 {[%clk 0:02:26]}  Qxf3 {[%clk 0:01:27]} 18. Nxf3 {[%clk 0:02:26]}  Nd7 {[%clk 0:01:24]} 19. e6 {[%clk 0:02:24]}  fxe6 {[%clk 0:01:23]} 20. Nxd4 {[%clk 0:02:24]}  Rxf1+ {[%clk 0:01:21]} 21. Rxf1 {[%clk 0:02:24]}  Nc5 {[%clk 0:01:17]} 22. Nxb5 {[%clk 0:02:22]}  Nxd3 {[%clk 0:01:16]} 23. Nc7 {[%clk 0:02:20]}  Rc8 {[%clk 0:01:14]} 24. Nxe6 {[%clk 0:02:20]}  h6 {[%clk 0:01:12]} 25. Rd1 {[%clk 0:02:16]}  Nb4 {[%clk 0:01:06]} 26. a3 {[%clk 0:02:16]}  Nc2 {[%clk 0:01:00]} 27. Rc1 {[%clk 0:02:15]}  Rc6 {[%clk 0:00:56]} 28. Nd8 {[%clk 0:02:13]}  Rc8 {[%clk 0:00:51]} 29. Nb7 {[%clk 0:02:00]}  Rb8 {[%clk 0:00:50]} 30. Nd6 {[%clk 0:01:56]}  Nxa3 {[%clk 0:00:47]} 31. Rc3 {[%clk 0:01:45]}  Nb5 {[%clk 0:00:46]} 32. Rc8+ {[%clk 0:01:45]}  Rxc8 {[%clk 0:00:46]} 33. Nxc8 {[%clk 0:01:45]}  a5 {[%clk 0:00:43]} 34. Ne7+ {[%clk 0:01:38]}  Kf7 {[%clk 0:00:42]} 35. Nc6 {[%clk 0:01:39]}  Ke6 {[%clk 0:00:38]} 36. Nxa5 {[%clk 0:01:38]}  Kd5 {[%clk 0:00:37]} 37. Kf2 {[%clk 0:01:39]}  Kc5 {[%clk 0:00:36]} 38. Kf3 {[%clk 0:01:37]}  Kb4 {[%clk 0:00:36]} 39. Nc6+ {[%clk 0:01:35]}  Kxb3 {[%clk 0:00:37]} 40. Kf4 {[%clk 0:01:33]}  Kc4 {[%clk 0:00:35]} 41. Kf5 {[%clk 0:01:33]}  Kd3 {[%clk 0:00:28]} 42. Kg6 {[%clk 0:01:33]}  Ke2 {[%clk 0:00:27]} 43. Kxg7 {[%clk 0:01:32]}  Kf2 {[%clk 0:00:27]} 44. g4 {[%clk 0:01:30]}  Kg2 {[%clk 0:00:24]} 45. Kxh6 {[%clk 0:01:30]}  Kxh2 {[%clk 0:00:24]} 46. g5 {[%clk 0:01:30]}  Nd6 {[%clk 0:00:17]} 47. g6 {[%clk 0:01:29]}  Ne8 {[%clk 0:00:15]} 48. Kg5 {[%clk 0:01:25]}  Kg3 {[%clk 0:00:14]} 49. Nd4 {[%clk 0:01:25]}  Kh3 {[%clk 0:00:12]} 50. Nf5 {[%clk 0:01:17]}  Nc7 {[%clk 0:00:07]} 51. Kf6 {[%clk 0:01:14]}  Nd5+ {[%clk 0:00:07]} 52. Ke5 {[%clk 0:01:14]} 1-0


[Site "https://www.chess.com"]

[Event "Titled Tuesday Blitz February 14 Late 2023"]
[White "benny_aizenberg"]
[Black "Bongo Akanga Ndjila, Barthelemy"]
[BlackFideId "10609431"]
[WhiteElo "2558"]
[BlackElo "1824"]
[Result "1-0"]
[Round "07"]
[TimeControl "180+2"]
[Date "2023.02.14"]
[WhiteClock "0:01:29"]
[BlackClock "0:01:27"]

1. g4 {[%clk 0:02:59]}  d5 {[%clk 0:02:55]} 2. g5 {[%clk 0:03:00]}  c5 {[%clk 0:02:54]} 3. h4 {[%clk 0:02:59]}  Nc6 {[%clk 0:02:54]} 4. Bg2 {[%clk 0:02:58]}  e5 {[%clk 0:02:54]} 5. d3 {[%clk 0:02:57]}  Qc7 {[%clk 0:02:51]} 6. Bxd5 {[%clk 0:02:56]}  Bd6 {[%clk 0:02:45]} 7. Nc3 {[%clk 0:02:55]}  a6 {[%clk 0:02:43]} 8. Bg2 {[%clk 0:02:50]}  Nge7 {[%clk 0:02:44]} 9. e3 {[%clk 0:02:39]}  Be6 {[%clk 0:02:43]} 10. Bh3 {[%clk 0:02:28]}  Bxh3 {[%clk 0:02:40]} 11. Nxh3 {[%clk 0:02:28]}  O-O {[%clk 0:02:40]} 12. Bd2 {[%clk 0:02:24]}  f6 {[%clk 0:02:38]} 13. gxf6 {[%clk 0:02:17]}  Rxf6 {[%clk 0:02:36]} 14. Ne4 {[%clk 0:02:12]}  Rg6 {[%clk 0:02:32]} 15. h5 {[%clk 0:02:08]}  Re6 {[%clk 0:02:29]} 16. Nhg5 {[%clk 0:02:07]}  Rh6 {[%clk 0:02:27]} 17. Qg4 {[%clk 0:02:07]}  Qc8 {[%clk 0:02:17]} 18. Qg3 {[%clk 0:02:01]}  Nb4 {[%clk 0:02:14]} 19. Bxb4 {[%clk 0:02:00]}  cxb4 {[%clk 0:02:14]} 20. O-O-O {[%clk 0:02:00]}  b3 {[%clk 0:02:10]} 21. axb3 {[%clk 0:02:00]}  Nd5 {[%clk 0:01:59]} 22. Rhg1 {[%clk 0:01:38]}  Nb4 {[%clk 0:01:57]} 23. c3 {[%clk 0:01:38]}  Bf8 {[%clk 0:01:49]} 24. Qxe5 {[%clk 0:01:30]}  Qc7 {[%clk 0:01:27]} 25. Qxc7 {[%clk 0:01:29]} 1-0


[Site "https://www.chess.com"]

[Event "Titled Tuesday Blitz February 14 Late 2023"]
[White "Delorme, Alban"]
[Black "Strahov, Andrej"]
[WhiteFideId "623636"]
[BlackFideId "4165489"]
[WhiteElo "2298"]
[BlackElo "2398"]
[Result "1-0"]
[Round "07"]
[TimeControl "180+2"]
[Date "2023.02.14"]
[WhiteClock "0:00:10"]
[BlackClock "0:00:58"]

1. e4 {[%clk 0:03:00]}  d5 {[%clk 0:02:57]} 2. exd5 {[%clk 0:03:00]}  Qxd5 {[%clk 0:02:58]} 3. Nc3 {[%clk 0:03:01]}  Qa5 {[%clk 0:02:56]} 4. b4 {[%clk 0:03:01]}  Qxb4 {[%clk 0:02:54]} 5. Nb5 {[%clk 0:03:01]}  Qa5 {[%clk 0:02:50]} 6. Bc4 {[%clk 0:03:01]}  c6 {[%clk 0:02:47]} 7. Bxf7+ {[%clk 0:03:01]}  Kxf7 {[%clk 0:02:45]} 8. Qh5+ {[%clk 0:03:01]}  Kf6 {[%clk 0:02:37]} 9. Bb2+ {[%clk 0:02:40]}  e5 {[%clk 0:02:36]} 10. Qxe5+ {[%clk 0:02:29]}  Kg6 {[%clk 0:02:35]} 11. Qe8+ {[%clk 0:01:20]}  Kh6 {[%clk 0:02:31]} 12. Qxf8 {[%clk 0:00:52]}  Qxb5 {[%clk 0:02:30]} 13. Qxg7+ {[%clk 0:00:50]}  Kh5 {[%clk 0:02:28]} 14. Qxh8 {[%clk 0:00:49]}  Bf5 {[%clk 0:02:04]} 15. Qe5 {[%clk 0:00:44]}  Qxe5+ {[%clk 0:02:03]} 16. Bxe5 {[%clk 0:00:45]}  Nd7 {[%clk 0:02:02]} 17. Bd4 {[%clk 0:00:37]}  Bxc2 {[%clk 0:02:01]} 18. Nf3 {[%clk 0:00:34]}  Re8+ {[%clk 0:02:00]} 19. Be3 {[%clk 0:00:35]}  Bd3 {[%clk 0:01:56]} 20. h3 {[%clk 0:00:35]}  Ngf6 {[%clk 0:01:54]} 21. g4+ {[%clk 0:00:35]}  Kg6 {[%clk 0:01:54]} 22. Nh4+ {[%clk 0:00:31]}  Kf7 {[%clk 0:01:53]} 23. f3 {[%clk 0:00:29]}  Ne5 {[%clk 0:01:51]} 24. Kf2 {[%clk 0:00:28]}  Bc4 {[%clk 0:01:51]} 25. Nf5 {[%clk 0:00:27]}  Rd8 {[%clk 0:01:45]} 26. Bd4 {[%clk 0:00:25]}  Ng6 {[%clk 0:01:38]} 27. Nh6+ {[%clk 0:00:19]}  Kg7 {[%clk 0:01:33]} 28. Nf5+ {[%clk 0:00:19]}  Kf7 {[%clk 0:01:33]} 29. Rhe1 {[%clk 0:00:18]}  Ng8 {[%clk 0:01:28]} 30. h4 {[%clk 0:00:17]}  Be6 {[%clk 0:01:26]} 31. Bc3 {[%clk 0:00:17]}  Nf4 {[%clk 0:01:24]} 32. Re4 {[%clk 0:00:14]}  Nd5 {[%clk 0:01:18]} 33. Rae1 {[%clk 0:00:13]}  Bxf5 {[%clk 0:01:17]} 34. gxf5 {[%clk 0:00:13]}  Rd6 {[%clk 0:01:14]} 35. Rg4 {[%clk 0:00:12]}  Nxc3 {[%clk 0:01:06]} 36. dxc3 {[%clk 0:00:12]}  Rd3 {[%clk 0:01:06]} 37. Re3 {[%clk 0:00:12]}  Rd2+ {[%clk 0:01:06]} 38. Re2 {[%clk 0:00:12]}  Rd3 {[%clk 0:01:06]} 39. Rb4 {[%clk 0:00:12]}  b6 {[%clk 0:01:04]} 40. Rc4 {[%clk 0:00:10]}  Ne7 {[%clk 0:01:01]} 41. Rd4 {[%clk 0:00:08]}  Rxd4 {[%clk 0:00:59]} 42. cxd4 {[%clk 0:00:09]}  Nxf5 {[%clk 0:01:00]} 43. Re4 {[%clk 0:00:06]}  Kf6 {[%clk 0:00:56]} 44. Ke2 {[%clk 0:00:06]}  Nd6 {[%clk 0:00:57]} 45. Rf4+ {[%clk 0:00:04]}  Ke6 {[%clk 0:00:57]} 46. Kd3 {[%clk 0:00:05]}  Nb7 {[%clk 0:00:56]} 47. Rf8 {[%clk 0:00:05]}  c5 {[%clk 0:00:56]} 48. dxc5 {[%clk 0:00:05]}  Nxc5+ {[%clk 0:00:56]} 49. Ke3 {[%clk 0:00:05]}  Kd5 {[%clk 0:00:53]} 50. Rh8 {[%clk 0:00:06]}  Nd7 {[%clk 0:00:53]} 51. Rxh7 {[%clk 0:00:06]}  Ne5 {[%clk 0:00:52]} 52. Rxa7 {[%clk 0:00:06]}  Nc4+ {[%clk 0:00:53]} 53. Kf2 {[%clk 0:00:06]}  Ne5 {[%clk 0:00:52]} 54. Ra6 {[%clk 0:00:06]}  Nd3+ {[%clk 0:00:53]} 55. Ke3 {[%clk 0:00:05]}  b5 {[%clk 0:00:54]} 56. Kxd3 {[%clk 0:00:06]}  Kc5 {[%clk 0:00:55]} 57. Ra5 {[%clk 0:00:06]}  Kb6 {[%clk 0:00:55]} 58. Rxb5+ {[%clk 0:00:07]}  Kxb5 {[%clk 0:00:55]} 59. h5 {[%clk 0:00:07]}  Ka4 {[%clk 0:00:55]} 60. h6 {[%clk 0:00:08]}  Ka3 {[%clk 0:00:56]} 61. h7 {[%clk 0:00:09]}  Kxa2 {[%clk 0:00:57]} 62. h8=Q {[%clk 0:00:10]}  Ka3 {[%clk 0:00:57]} 63. Qb8 {[%clk 0:00:10]}  Ka2 {[%clk 0:00:57]} 64. Kc3 {[%clk 0:00:10]}  Ka1 {[%clk 0:00:58]} 65. Qb2# {[%clk 0:00:10]} 1-0


[Site "https://www.chess.com"]

[Event "Titled Tuesday Blitz February 14 Late 2023"]
[White "Sztokbant, Bernardo Vainzoff"]
[Black "Rodrigues, Tiago Pereira"]
[WhiteFideId "2115956"]
[BlackFideId "2101203"]
[WhiteElo "2213"]
[BlackElo "2155"]
[Result "1-0"]
[Round "07"]
[TimeControl "180+2"]
[Date "2023.02.14"]
[WhiteClock "0:01:11"]
[BlackClock "0:00:20"]

1. d4 {[%clk 0:03:00]}  Nf6 {[%clk 0:02:59]} 2. Nf3 {[%clk 0:03:01]}  d6 {[%clk 0:02:59]} 3. g3 {[%clk 0:03:02]}  c6 {[%clk 0:02:59]} 4. Bg2 {[%clk 0:03:02]}  g6 {[%clk 0:03:00]} 5. O-O {[%clk 0:03:03]}  Nbd7 {[%clk 0:03:00]} 6. c4 {[%clk 0:03:04]}  Bg7 {[%clk 0:03:01]} 7. Nc3 {[%clk 0:03:04]}  e5 {[%clk 0:03:02]} 8. e4 {[%clk 0:03:04]}  O-O {[%clk 0:03:03]} 9. Re1 {[%clk 0:03:05]}  exd4 {[%clk 0:03:03]} 10. Nxd4 {[%clk 0:03:05]}  Re8 {[%clk 0:03:03]} 11. h3 {[%clk 0:02:59]}  a5 {[%clk 0:03:03]} 12. b3 {[%clk 0:02:58]}  Nc5 {[%clk 0:03:03]} 13. Bf4 {[%clk 0:02:54]}  Nh5 {[%clk 0:02:59]} 14. Be3 {[%clk 0:02:53]}  Qb6 {[%clk 0:02:55]} 15. Rc1 {[%clk 0:02:37]}  Qb4 {[%clk 0:02:47]} 16. Qd2 {[%clk 0:02:32]}  a4 {[%clk 0:02:42]} 17. g4 {[%clk 0:02:20]}  axb3 {[%clk 0:02:15]} 18. axb3 {[%clk 0:02:17]}  Nf6 {[%clk 0:02:06]} 19. Bf4 {[%clk 0:02:11]}  Bf8 {[%clk 0:01:49]} 20. Rb1 {[%clk 0:02:01]}  Nfd7 {[%clk 0:01:43]} 21. Nc2 {[%clk 0:01:55]}  Qb6 {[%clk 0:01:32]} 22. b4 {[%clk 0:01:44]}  Na4 {[%clk 0:01:17]} 23. Ra1 {[%clk 0:01:36]}  Nxc3 {[%clk 0:00:34]} 24. Rxa8 {[%clk 0:01:37]}  Bg7 {[%clk 0:00:34]} 25. Bxd6 {[%clk 0:01:27]}  c5 {[%clk 0:00:31]} 26. e5 {[%clk 0:01:17]}  cxb4 {[%clk 0:00:30]} 27. Nxb4 {[%clk 0:01:17]}  Bxe5 {[%clk 0:00:21]} 28. Bxe5 {[%clk 0:01:14]}  Nxe5 {[%clk 0:00:20]} 29. Qxc3 {[%clk 0:01:11]} 1-0


[Site "https://www.chess.com"]

[Event "Titled Tuesday Blitz February 14 Late 2023"]
[White "Papayan, Oleg"]
[Black "Papp, Levente"]
[WhiteFideId "4193911"]
[BlackFideId "751243"]
[WhiteElo "2253"]
[BlackElo "2353"]
[Result "0-1"]
[Round "07"]
[TimeControl "180+2"]
[Date "2023.02.14"]
[WhiteClock "0:00:03"]
[BlackClock "0:00:05"]

1. e4 {[%clk 0:03:00]}  e6 {[%clk 0:02:59]} 2. d4 {[%clk 0:02:59]}  d5 {[%clk 0:02:58]} 3. Nc3 {[%clk 0:03:00]}  Bb4 {[%clk 0:02:58]} 4. Ne2 {[%clk 0:02:59]}  Nc6 {[%clk 0:02:50]} 5. a3 {[%clk 0:02:56]}  Ba5 {[%clk 0:02:48]} 6. b4 {[%clk 0:02:55]}  Bb6 {[%clk 0:02:48]} 7. Bb2 {[%clk 0:02:49]}  Nge7 {[%clk 0:02:35]} 8. e5 {[%clk 0:02:35]}  O-O {[%clk 0:02:32]} 9. Na4 {[%clk 0:02:35]}  f6 {[%clk 0:02:29]} 10. Nxb6 {[%clk 0:02:34]}  axb6 {[%clk 0:02:28]} 11. exf6 {[%clk 0:02:16]}  Rxf6 {[%clk 0:02:26]} 12. Ng3 {[%clk 0:01:58]}  Qf8 {[%clk 0:02:14]} 13. f3 {[%clk 0:01:49]}  e5 {[%clk 0:02:02]} 14. dxe5 {[%clk 0:01:47]}  Re6 {[%clk 0:02:02]} 15. Be2 {[%clk 0:01:43]}  Nxe5 {[%clk 0:02:02]} 16. O-O {[%clk 0:01:43]}  Nc4 {[%clk 0:01:51]} 17. Bxc4 {[%clk 0:01:30]}  dxc4 {[%clk 0:01:51]} 18. Qd4 {[%clk 0:01:15]}  b5 {[%clk 0:01:37]} 19. Rfe1 {[%clk 0:01:15]}  Raa6 {[%clk 0:01:29]} 20. Qc5 {[%clk 0:00:52]}  Rxe1+ {[%clk 0:00:45]} 21. Rxe1 {[%clk 0:00:53]}  Re6 {[%clk 0:00:44]} 22. Rxe6 {[%clk 0:00:49]}  Bxe6 {[%clk 0:00:45]} 23. Qxc7 {[%clk 0:00:43]}  Nd5 {[%clk 0:00:44]} 24. Qe5 {[%clk 0:00:35]}  Qf6 {[%clk 0:00:24]} 25. Qb8+ {[%clk 0:00:29]}  Qf8 {[%clk 0:00:23]} 26. Qxb7 {[%clk 0:00:28]}  c3 {[%clk 0:00:21]} 27. Bc1 {[%clk 0:00:25]}  Qf6 {[%clk 0:00:19]} 28. Ne4 {[%clk 0:00:11]}  Qd4+ {[%clk 0:00:19]} 29. Nf2 {[%clk 0:00:10]}  h6 {[%clk 0:00:08]} 30. Qxb5 {[%clk 0:00:09]}  Bf7 {[%clk 0:00:05]} 31. Qb8+ {[%clk 0:00:07]}  Kh7 {[%clk 0:00:05]} 32. Qb5 {[%clk 0:00:08]}  Qe5 {[%clk 0:00:05]} 33. Qd3+ {[%clk 0:00:07]}  Bg6 {[%clk 0:00:05]} 34. Ne4 {[%clk 0:00:08]}  Nf4 {[%clk 0:00:04]} 35. Bxf4 {[%clk 0:00:08]}  Qxf4 {[%clk 0:00:05]} 36. Kf2 {[%clk 0:00:07]}  Qc7 {[%clk 0:00:04]} 37. g3 {[%clk 0:00:07]}  Qa7+ {[%clk 0:00:04]} 38. Ke2 {[%clk 0:00:06]}  Qxa3 {[%clk 0:00:05]} 39. Qxc3 {[%clk 0:00:07]}  Qc1 {[%clk 0:00:05]} 40. Qd2 {[%clk 0:00:06]}  Qh1 {[%clk 0:00:05]} 41. Kd3 {[%clk 0:00:06]}  Qxf3+ {[%clk 0:00:05]} 42. Qe3 {[%clk 0:00:06]}  Bxe4+ {[%clk 0:00:05]} 43. Kd4 {[%clk 0:00:07]}  Qxe3+ {[%clk 0:00:05]} 44. Kxe3 {[%clk 0:00:08]}  Bxc2 {[%clk 0:00:06]} 45. b5 {[%clk 0:00:08]}  Ba4 {[%clk 0:00:06]} 46. b6 {[%clk 0:00:08]}  Bc6 {[%clk 0:00:07]} 47. Kf4 {[%clk 0:00:08]}  Kg6 {[%clk 0:00:07]} 48. g4 {[%clk 0:00:08]}  Kf6 {[%clk 0:00:07]} 49. h4 {[%clk 0:00:09]}  Kg6 {[%clk 0:00:06]} 50. Ke5 {[%clk 0:00:08]}  Bf3 {[%clk 0:00:06]} 51. Kf4 {[%clk 0:00:05]}  Bh1 {[%clk 0:00:06]} 52. Ke5 {[%clk 0:00:06]}  Kf7 {[%clk 0:00:05]} 53. Kf4 {[%clk 0:00:02]}  Kf6 {[%clk 0:00:04]} 54. g5+ {[%clk 0:00:02]}  hxg5+ {[%clk 0:00:05]} 55. hxg5+ {[%clk 0:00:03]}  Ke6 {[%clk 0:00:05]} 56. Kg4 {[%clk 0:00:03]}  Ke5 {[%clk 0:00:05]} 57. Kh5 {[%clk 0:00:03]}  Kf5 {[%clk 0:00:05]} 58. g6 {[%clk 0:00:03]}  Kf6 {[%clk 0:00:06]} 59. Kh4 {[%clk 0:00:03]}  Kxg6 {[%clk 0:00:05]} 0-1


[Site "https://www.chess.com"]